Cogmind - Beta 16.1 @@@ ROGUE MODE // 2026.04.06 @ 13:24:07 Player: Frosti Result: Self-destructed Performance ------------- Evolutions (2) 1000 Regions Visited (4) 800 Robots Destroyed (32) 160 Value Destroyed (1003) 1003 Prototype IDs (2) 40 Alien Tech Used (0) 0 Bonus (87) 87 TOTAL SCORE: 3090 Bonus ------- Follower Combat Kills 87 Cogmind --------- Core Integrity 298/550 Matter 300/300 Energy 273/275 System Corruption 0% Temperature Cool (6) Movement Flying (30) Location -8/Materials Parts ------- > --- POWER (1) -------- Deuterium Engine > --- PROPULSION (4) --- Flight Unit Improved VTOL Module Improved VTOL Module > --- UTILITY (4) ------ Improved Terrain Scanner Improved Terrain Scan Processor Reaction Control System > --- WEAPON (2) ------- Mini Grenade Launcher Hammer > --- INVENTORY (5) ---- Light Ion Engine Light Deuterium Engine Improved Heat Sink Advanced Visual Processing Unit Peak State ------------ > --- POWER ------------ Light Angular Momentum Engine > --- PROPULSION ------- Carbon-fiber Leg Carbon-fiber Leg VSS Leg Improved VTOL Module > --- UTILITY ---------- Large Storage Unit Reaction Control System Light Armor Plating Light Armor Plating > --- WEAPON ----------- Flak Cannon Hammer > --- INVENTORY -------- Light Ion Engine Light Ion Engine Light Deuterium Engine Light Nuclear Core Aluminum Leg Improved Aluminum Leg Flight Unit Improved VTOL Module Improved Heat Sink Medium Storage Unit Large Storage Unit Large Matter Pod Advanced Visual Processing Unit Heavy Particle Gun Mini Grenade Launcher [Rating: 31] Favorites ----------- Power Light Nuclear Core Engine Ion Engine Power Core Light Nuclear Core Propulsion Aluminum Leg Leg Aluminum Leg Flight Unit Improved VTOL Module Utility Large Storage Unit Device Weight Redist. System Storage Large Storage Unit Processor Terrain Scan Processor Protection Light Armor Plating Weapon Light Assault Rifle Energy Gun EM Pulse Gun Ballistic Gun Light Assault Rifle Ballistic Cannon Flak Cannon Launcher Mini Grenade Launcher Special Weapon Mining Laser Impact Weapon Hammer Build | -11 -10 -9 -9 -8 ------- Run | Yrd Mat Mat Min Mat Slots Evolved 4 | . . 2 . 2 Power . | . . . . . Propulsion 2 | . . 2 . . Utility 2 | . . . . 2 Weapon . | . . . . . Parts Attached 39 | 6 2 5 3 23 Power 6 | 1 1 . 1 3 Engine 5 | 1 . . 1 3 Core 1 | . 1 . . . Reactor . | . . . . . Propulsion 13 | 2 . 2 2 7 Treads . | . . . . . Leg 9 | 2 . 2 2 3 Wheel . | . . . . . Hover . | . . . . . Flight 4 | . . . . 4 Utility 11 | 1 1 1 . 8 Device 4 | . . . . 4 Storage 2 | 1 1 . . . Processor 3 | . . 1 . 2 Hackware . | . . . . . Protection 2 | . . . . 2 Artifact . | . . . . . Weapon 9 | 2 . 2 . 5 Energy Gun 3 | 1 . 1 . 1 Energy Cannon . | . . . . . Ballistic Gun 2 | 1 . 1 . . Ballistic Cannon 1 | . . . . 1 Launcher 1 | . . . . 1 Special Weapon 1 | . . . . 1 Impact Weapon 1 | . . . . 1 Slashing Weapon . | . . . . . Piercing Weapon . | . . . . . Special Melee Weapon . | . . . . . Unidentified Prototypes 2 | . . . . 2 Parts Lost 8 | . . . 1 7 Power 3 | . . . 1 2 Propulsion 1 | . . . . 1 Utility 3 | . . . . 3 Weapon 1 | . . . . 1 Highest Loss Streak 2 | . . . 1 2 To Critical Strikes . | . . . . . Average Backups 11 | 1 7 13 14 12 Power 3 | . 2 4 3 3 Propulsion 1 | . . 2 2 2 Utility 4 | . 2 4 6 4 Weapon 1 | . 1 2 3 1 Tool/Special . | . . . . . Unused Backups 13 | . . 1 . 12 Power 4 | . . . . 4 Propulsion 2 | . . . . 2 Utility 5 | . . . . 5 Weapon 2 | . . 1 . 1 Tool/Special . | . . . . . Average Slot Usage (%) 91 | . 99 82 100 89 Engine 6 | . 6 . 9 8 Core 4 | . 8 11 1 . Leg 28 | . 28 27 44 25 Flight 2 | . . . . 6 Device 4 | . . . . 10 Storage 13 | . 27 14 11 7 Processor 5 | . . 7 11 5 Protection 3 | . . . . 7 Energy Gun 8 | . 14 11 11 3 Ballistic Gun 8 | . 14 11 11 3 Launcher 1 | . . . . 2 Impact Weapon 2 | . . . . 6 Peak Build Rating 31 | 6 10 16 16 31 Average Rating 15 | 4 8 12 14 21 On Entrance 9 | . 6 10 16 14 Avg Prop Armor Cover (%) 13 | . . . . 13 Naked Turns . | . . . . . Heaviest Build 44 | 11 33 33 31 44 Greatest Support 61 | 20 20 43 43 61 Greatest Overweight (x) 7 | . 1 1 . 7 Average Overweight (x) . | . . . . . Largest Inventory Capacity 15 | 8 15 15 15 15 Average Capacity 13 | 7 14 15 15 12 Most Carried 15 | 5 12 15 15 15 Average Carried 11 | 2 7 13 14 12 Final Capacity 15 | 8 15 15 15 5 Final Carried 15 | 2 12 15 15 4 Class Distribution -------------------- 45% | Scavenger-Mutant 44% | Mutant 10% | Sprinter Dominant Class ---------------- Mutant | -10/Materials Mutant | -9/Materials Scavenger-Mutant | -9/Mines Scavenger-Mutant | -8/Materials Resources | -11 -10 -9 -9 -8 ----------- Run | Yrd Mat Mat Min Mat Matter Collected 1049 | 246 51 153 128 471 Remotely . | . . . . . Salvage Created 1175 | . 313 153 79 630 Parts 59 | . 14 14 6 25 Haulers Intercepted 2 | . 1 . . 1 Recyclers Shooed . | . . . . . Parts Field Recycled . | . . . . . Retrieved Matter . | . . . . . Parts Self-Destructed . | . . . . . Prevented . | . . . . . Parts Restored . | . . . . . Kills | -11 -10 -9 -9 -8 ------- Run | Yrd Mat Mat Min Mat Combat Hostiles Destroyed 20 | . 3 3 2 12 Guns 10 | . 3 3 2 2 Cannons 3 | . . . . 3 AOE 3 | . . . . 3 Classes Destroyed 8 | . 4 2 . 2 Worker 2 | . . 1 . 1 Builder 1 | . . . . 1 Hauler 2 | . 1 . . 1 Recycler 3 | . 1 . . 2 Operator 2 | . . . . 2 Watcher 2 | . 1 . . 1 Grunt 15 | . 3 2 2 8 Sentry 5 | . . 1 . 4 Best Kill Streak 6 | . 3 2 2 6 Combat Bots Only 4 | . 3 2 2 4 Max Kills in Single Turn 2 | . 1 1 1 2 Gunslinging . | . . . . . Exploded 2 | . . . . 2 Melee . | . . . . . Uniques/NPCs Destroyed . | . . . . . Combat | -11 -10 -9 -9 -8 -------- Run | Yrd Mat Mat Min Mat Hostile Shots Fired 146 | . 7 20 25 94 Missed 45 | . 2 7 5 31 Hits 101 | . 5 13 20 63 Projectile 101 | . 5 13 20 63 Critical Strikes 5 | . . . . 5 Damage Taken 1749 | . 62 184 255 1248 Core 345 | . . 26 67 252 Absorbed by Shields . | . . . . . Core Remaining (%) 92 | 100 100 . 76 . Volleys Fired 93 | . 11 16 13 53 Largest 2 | . 2 2 2 2 Hottest 156 | . 60 79 79 156 Shots Fired 147 | . 22 32 26 67 Gun 118 | . 22 32 26 38 Cannon 16 | . . . . 16 Launcher 11 | . . . . 11 Special 2 | . . . . 2 Kinetic 68 | . 11 16 13 28 Thermal 47 | . . 6 13 28 Explosive 11 | . . . . 11 Electromagnetic 21 | . 11 10 . . Robot Hit Streak 13 | . 9 3 10 13 Robot Miss Streak 6 | . 3 3 2 6 Penetration Max . | . . . . . Secondary Targets 1 | . . . 1 . Max Gunslinging Chain 1 | . . . 1 . Shots Hit Robots 104 | . 15 15 20 54 Core Hits 65 | . 10 7 6 42 Critical Kills . | . . . . . Critical Parts Destroyed 4 | . . . . 4 Critical Strikes 6 | . . . . 6 Burn 2 | . . . . 2 Smash 4 | . . . . 4 Melee Attacks 17 | . . . . 17 Impact 17 | . . . . 17 Slashing . | . . . . . Piercing . | . . . . . Sneak Attacks 2 | . . . . 2 Combat Hostiles . | . . . . . Follow-up Attacks . | . . . . . Damage Inflicted 2496 | . 211 166 317 1802 Guns 901 | . 170 162 317 252 Cannons 298 | . . . . 298 Explosions 885 | . 41 . . 844 Melee 408 | . . . . 408 Ramming 4 | . . 4 . . Kinetic 655 | . 50 100 159 346 Thermal 418 | . 41 15 158 204 Explosive 844 | . . . . 844 Electromagnetic 167 | . 120 47 . . Impact 408 | . . . . 408 Slashing . | . . . . . Piercing . | . . . . . Highest Corruption . | . . . . . Average Corruption . | . . . . . Corruption Purged . | . . . . . Corruption Blocked . | . . . . . Overload Shots . | . . . . . Overflow Damage 169 | . . . . 169 Projectiles . | . . . . . Explosions 19 | . . . . 19 Melee 150 | . . . . 150 Knockbacks 1 | . . . . 1 Impact 1 | . . . . 1 Kinetic . | . . . . . Secondary . | . . . . . Self-Inflicted Damage 231 | . . . . 231 Shots 7 | . . . . 7 Rammed . | . . . . . Targets Rammed 2 | . . 2 . . Kicked 2 | . . 2 . . Crushed . | . . . . . Highest Temperature 431 | . 64 45 134 431 Average Temperature 61 | . 23 20 58 85 Received Heat Transfer 798 | . 36 39 147 576 Effects 1 | . . . . 1 Energy Bleed 1 | . . . . 1 Siege Activations . | . . . . . Martial Activations . | . . . . . Shielding Activations . | . . . . . Robots Disrupted . | . . . . . Combat Hostiles . | . . . . . Robots Corrupted 5 | . . . . 5 Combat Hostiles 4 | . . . . 4 Parts Fried 1 | . . . . 1 Impact Corruptions 7 | . . . . 7 Robots Melted . | . . . . . Combat Hostiles . | . . . . . Parts Melted 3 | . . . . 3 Heat Transferred 1160 | . 50 37 407 666 Parts Sabotaged . | . . . . . Parts Stolen . | . . . . . Parts Stripped . | . . . . . Power Chain Reactions 1 | . 1 . . . Alert | -11 -10 -9 -9 -8 ------- Run | Yrd Mat Mat Min Mat Maximum Alert Level 1 | . . . . 1 Low Security (%) 94 | 100 100 100 100 88 Level 1 5 | . . . . 11 Level 2 . | . . . . . Level 3 . | . . . . . Level 4 . | . . . . . Level 5 . | . . . . . High Security . | . . . . . Max Security . | . . . . . Peak Influence 281 | . 60 66 55 281 Initial 25 | . . . 25 14 Average 36 | . 19 10 28 62 Influence Increases 821 | . 95 111 103 512 Destroy 0b10 Robot/C 460 | . 60 60 80 260 Destroy 0b10 Robot/NC 60 | . 15 5 . 40 Destroy Leader 138 | . 14 30 20 74 Allied During Kill 5 | . . . 3 2 Successful Hack 2 | . 2 . . . Disable Machine 45 | . . . . 45 Destroy Structure 81 | . 4 1 . 76 Lose Combat Pursuer 30 | . . 15 . 15 Influence Decreases 556 | . 94 46 131 285 Entered New Map 66 | . . 1 41 24 Time Decay 410 | . 94 45 80 191 Lost Part 60 | . . . 10 50 Lost Ally 20 | . . . . 20 Squads Dispatched 5 | . . 2 . 3 Investigation 1 | . . . . 1 Extermination . | . . . . . Reinforcement 4 | . . 2 . 2 Assault . | . . . . . Garrison . | . . . . . Intercept . | . . . . . Searches Triggered . | . . . . . Construction Impeded . | . . . . . Haulers Reinforced . | . . . . . Active Scanning Responses . | . . . . . Cargo Convoy Interrupts . | . . . . . Stealth | -11 -10 -9 -9 -8 --------- Run | Yrd Mat Mat Min Mat Distress Signals . | . . . . . Communications Jammed . | . . . . . Distress Signals . | . . . . . Times Spotted 35 | . 5 6 3 21 Peak Tracking Total 5 | . 2 2 2 5 Tactical Retreats 2 | . . 1 . 1 Traps | -11 -10 -9 -9 -8 ------- Run | Yrd Mat Mat Min Mat Traps Triggered . | . . . . . Indirectly . | . . . . . Trap Hack Attempts . | . . . . . Triggered . | . . . . . Disarmed . | . . . . . Reprogrammed . | . . . . . Reused . | . . . . . Traps Extracted . | . . . . . Installed . | . . . . . Triggered . | . . . . . Machines | -11 -10 -9 -9 -8 ---------- Run | Yrd Mat Mat Min Mat Machines Disabled 3 | . . . . 3 Max in Single Turn 1 | . . . . 1 Machines Repaired . | . . . . . Machines Dismantled . | . . . . . Machines Sabotaged . | . . . . . Overloaded Fab Kills . | . . . . . Hacking | -11 -10 -9 -9 -8 --------- Run | Yrd Mat Mat Min Mat Machines Accessed 2 | . 2 . . . Terminals 2 | . 2 . . . Fabricators . | . . . . . Repair Stations . | . . . . . Recycling Units . | . . . . . Scanalyzers . | . . . . . Garrison Access . | . . . . . Total Hacks 5 | . 5 . . . Successful 3 | . 3 . . . Failed 2 | . 2 . . . Catastrophic . | . . . . . Database Lockouts . | . . . . . Manual . | . . . . . Terminals 5 | . 5 . . . Fabricators . | . . . . . Repair Stations . | . . . . . Recycling Units . | . . . . . Scanalyzers . | . . . . . Garrison Access . | . . . . . Terminal Hacks 3 | . 3 . . . Record 2 | . 2 . . . Locate Traps 1 | . 1 . . . Fabricator Hacks . | . . . . . Repair Station Hacks . | . . . . . Recycling Unit Hacks . | . . . . . Scanalyzer . | . . . . . Garrison Access Hacks . | . . . . . Unauthorized Hacks . | . . . . . Terminals . | . . . . . Fabricators . | . . . . . Repair Stations . | . . . . . Recycling Units . | . . . . . Scanalyzers . | . . . . . Garrison Access . | . . . . . Data Cores Recovered . | . . . . . Used . | . . . . . Hacking Detections . | . . . . . Full Trace Events . | . . . . . Feedback Events . | . . . . . Feedback Blocked . | . . . . . Robot Schematics Acquired . | . . . . . Robots Built . | . . . . . Authchips . | . . . . . Time . | . . . . . Total Robot Build Rating . | . . . . . Part Schematics Acquired . | . . . . . Parts Built . | . . . . . Authchips . | . . . . . Time . | . . . . . Total Part Build Rating . | . . . . . Part Studies Acquired . | . . . . . Parts Repaired . | . . . . . Time . | . . . . . Parts Recycled . | . . . . . Recycled Matter . | . . . . . Retrieved Matter . | . . . . . Retrieved Components . | . . . . . Parts Scanalyzed . | . . . . . Part Schematics Acquired . | . . . . . Parts Damaged . | . . . . . Bothacking | -11 -10 -9 -9 -8 ------------ Run | Yrd Mat Mat Min Mat Used RIF Installer . | . . . . . Robots Hacked . | . . . . . Non-combat . | . . . . . Combat . | . . . . . Robot Hacks Applied . | . . . . . Relay Couplers Released . | . . . . . Fabnet Peak Effective % . | . . . . . Robots Rewired . | . . . . . Allies Hacked . | . . . . . Hacks Repelled . | . . . . . Allies | -11 -10 -9 -9 -8 -------- Run | Yrd Mat Mat Min Mat Total Allies 1 | . . . 1 . Largest Group 1 | . . . 1 1 Highest-Rated Group 31 | . . . 31 31 Highest-Rated Ally 31 | . . . 31 31 Total Orders . | . . . . . Ally Attacks 15 | . . . 12 3 Total Damage 169 | . . . 147 22 Kills 3 | . . . 2 1 Allies Corrupted . | . . . . . Allies Melted . | . . . . . Intel | -11 -10 -9 -9 -8 ------- Run | Yrd Mat Mat Min Mat Active Infowar (turns) 113 | . . . . 113 Terrain 113 | . . . . 113 Robot Analysis Total . | . . . . . Derelict Logs Recovered . | . . . . . Drone Launches . | . . . . . Drone Recoveries . | . . . . . Exploration | -11 -10 -9 -9 -8 ------------- Run | Yrd Mat Mat Min Mat Turns Passed 1408 | 61 271 298 177 601 Spaces Moved 867 | 48 122 152 100 445 Core 14 | 14 . . . . Treads . | . . . . . Legs 633 | 34 122 152 100 225 Wheels . | . . . . . Hover . | . . . . . Flight 220 | . . . . 220 Fastest Speed 30 | 50 120 120 120 30 Average Speed 113 | 99 187 155 120 79 Slowest Speed 555 | 120 190 190 120 555 Overloaded Moves . | . . . . . Propulsion Burnouts . | . . . . . Robots Hopped . | . . . . . Potential Cave-ins . | . . . . . Cave-ins Triggered . | . . . . . Exploration Rate (%) 20 | 4 21 16 24 36 Regions Visited 4 Branch Regions 1 Pre-discovered Areas . | . . . . . Known Exits Taken . | . . . . . Unknown Exits Taken 4 | 1 1 1 1 . Scrap Searched . | . . . . . Spaces Dug 2 | . . . . 2 Terrain Destroyed 79 | . 4 . . 75 Melee . | . . . . . Projectile 2 | . . . . 2 AOE 77 | . 4 . . 73 Terrain Rammed . | . . . . . Walls Destroyed . | . . . . . Machines Disabled . | . . . . . Actions | -11 -10 -9 -9 -8 --------- Run | Yrd Mat Mat Min Mat Total 1118 | 61 145 180 133 599 Wait 28 | . . . 13 15 Move 863 | 47 121 151 99 445 Hop . | . . . . . Pick Up 45 | 8 11 5 2 19 Fast Attach 7 | . . 1 . 6 Attach 18 | 6 1 1 1 9 Detach . | . . . . . Swap 19 | . 1 3 2 13 Drop 26 | . . 1 3 22 Fire 93 | . 11 16 13 53 Melee 17 | . . . . 17 Ram . | . . . . . Kick 2 | . . 2 . . Crush . | . . . . . Escape Stasis . | . . . . . Rewire . | . . . . . Trap . | . . . . . Miscellaneous . | . . . . . Route ------- -11/Scrapyard -10/Materials -9/Materials -9/Mines -8/Materials History --------- Turn | Location | Event 11 | -11/Scrapyard | Discovered new exit (range 15) 62 | -11/Scrapyard | Entered Materials 305 | -10/Materials | Discovered new exit (range 6) 306 | -10/Materials | Build established: Mutant 333 | -10/Materials | Entered another Materials area 333 | -9/Materials | Evolved 2 slots: Propulsion x2 616 | -9/Materials | Discovered new exit (range 6) 631 | -9/Materials | Entered Mines 673 | -9/Mines | Assembled infested the area 717 | -9/Mines | Received a Mining Laser from a helpful Derelict 800 | -9/Mines | Discovered new exit (range 8) 808 | -9/Mines | Entered Materials 808 | -8/Materials | Accompanied by 1 ally 808 | -8/Materials | Evolved 2 slots: Utility x2 927 | -8/Materials | Build established: Scavenger-Mutant 1409 | -8/Materials | Self-destructed Last Messages --------------- effect. Y-45 Defender system terminally corrupted. Sneak attack on A-02 Transporter. Destroyed Transport Network Coupler. A-02 Transporter system corrupted by crushing effect. K-01 Serf collects debris. A-02 Transporter system corruption misinterpreted. A-02 Transporter triggered Alarm Trap. An alarm sounds. ALERT: Alarm triggered, dispatching investigation squad. K-01 Serf collects debris. Acquired 6 matter. K-01 Serf collects debris. Acquired Imp. Terrain Scan Processor. [Achievement: Omniscient Cartographer] K-01 Serf collects debris. Acquired 10 matter. Map ----- +----------------------------------------------------+ | ??????????# T #??#=+ ! """#?? | | ??????????#+# ! #??# # * #?? | | ?????????????# %* # #??# # #?? | | ?????????????# =! ##? #??# ########?? | | ???????##????# %[ ############ ##???????? | | ?????#???????# # ###+#######??? | | ???????#?????### ## # #??? | | ???????????????#=## # #??? | | ?????#???????#?# ## # """ #??? | | ???#???#?????### ## # """"" #??? | | ?? ????####### # ## # """"" #??? | | ???????# =* # ## = # """"" #??? | | #??????# *! # #? # """ #??? | | ???????# * # #??? ?#! ##?? | | ????#??# # ######+########+#####??? | | ??????## # =%= ####### | | ?????? # + # # | | ???????# # #* # | | ?? ????# ################ # # | | ???"???# #???#??# # % # # | | ?? ????# ###????# """ #% # # | | ???????# ##?????# """ # =+ # | | ???????#########?????## %""" # %# """ # | | ??????????????##??????# # # """ # | | ???????????????#????######+#### # """ # | | ???????????????###??# @ % # """ # | | ????????????????????# # """ # | | ?? ?????????????????# # # | | ????????????????????# ##+#+###"### | | ??????????????????#?# # #? | | ????????????????????###### # #? | | ???????????????????#?????# + #? | | ?????????????????????????# # #? | | ?????????????????????????##### #? | | ?????????????????????????????# #? | | ?????????????????????????????# #? | | ?????????????????????????????# #? | | ??????????????????????????#??###########? | | ????????????????????????????????????????? | | | | | | | | | | | | | | | | | | | | | | | +----------------------------------------------------+ Best States ------------- Heat Dissipation 31 Energy Generation 18 Energy Capacity 275 Matter Stores 300 Matter Capacity 300 Sight Range 16 Terrain Scan Range 16 Terrain Scan Density 110 Additional Mass Support 6 Armor Coverage 300 Evasion (%) 72 Melee Accuracy 5 Item Schematics ----------------- None Robot Schematics ------------------ None Fabricated ------------ Nothing Repaired ---------- Nothing Studied --------- None Alien Tech Used ----------------- None Achievements -------------- Deadly Force Omniscient Cartographer There's More Where That Came From Challenges ------------ None Game ------ Seed MicroSurgeSpear Manual? 0 Play Time 00:19:21 Cumulative 3.1 hours Start 2026.04.06 @ 13:05:01 End 2026.04.06 @ 13:24:07 Sessions 1 Manual Loads 0 Difficulty Rogue Special Mode None Game No. 15 Rogue 10 Adventurer 0 Explorer 5 Win Type - Total 0 Types 0/0/0/0/0/0/0/0/0/0 Lore% 0 Gallery% 11 Achievement% 8 Wizard Run 0 Options --------- Layout 1 ASCII 0 Keyboard 0 Movement Mouse Keybinds 0 Fullscreen 1 Font 48/Smallcaps Map View 50x35 Zoom Use 0% Tactical HUD 0 Map Filters NONE Filters NONE Steam 1 RUN: d22cf6c9-f982-463b-82c8-8b605955d66c